bitfinex/quotes_SOLUSD_20240628
["timestamp","ask_amount","ask_price","bid_price","bid_amount"]
[1719617390227,6.0059,140.09,140.04,17.15]
[1719617390526,20.0,140.08,140.0,68.6]
[1719617391029,20.0,140.08,140.05,17.15]
[1719617395538,20.0,140.08,140.06,17.15]
[1719617396412,22.8102,140.13,140.06,17.15]
[1719617396629,17.15,140.12,140.07,17.15]
[1719617397526,17.15,140.11,140.06,17.15]
[1719617397730,17.15,140.1,140.04,17.15]
[1719617399129,17.15,140.07,140.01,17.15]
[1719617399433,17.15,140.07,140.02,17.15]
[1719617400330,117.15,140.07,139.98,15.5968]
[1719617400536,17.15,140.05,139.94,16.3605]
[1719617400739,17.15,140.05,139.98,17.15]
[1719617400740,32.9143,140.03,139.98,17.15]
[1719617401047,39.3592,140.03,139.97,17.15]
[1719617401405,39.3592,140.03,139.98,17.15]
[1719617402208,22.2092,140.03,139.98,17.15]
[1719617403219,22.2092,140.03,139.99,17.15]
[1719617404455,20.0,140.02,139.94,16.3605]
[1719617404620,17.15,140.01,139.96,17.15]
[1719617405019,20.0,140.02,139.99,17.15]
[1719617405827,20.0,140.02,140.0,17.15]
[1719617408343,22.2092,140.07,140.0,17.15]
[1719617408560,17.15,140.06,140.0,17.15]
[1719617409052,17.15,140.05,140.0,17.15]
[1719617409747,20.0,140.04,140.0,17.15]
[1719617410053,20.0,140.04,139.94,7.172]
[1719617410054,20.0,140.04,139.99,17.15]
[1719617410435,17.15,140.03,139.97,17.15]
[1719617410644,20.0,140.02,139.97,17.15]
[1719617410824,17.15,140.03,139.97,17.15]
[1719617411031,20.0,140.02,139.98,17.15]
[1719617414348,42.2092,140.02,139.91,299.12344686]
[1719617414667,17.15,140.0,139.95,17.15]
[1719617415549,42.2092,140.02,139.91,16.3605]
[1719617415774,17.15,139.98,139.91,16.3605]
[1719617415933,17.15,139.99,139.93,17.15]
[1719617416133,20.0,139.98,139.93,17.15]
[1719617418928,20.0,139.98,139.94,17.15]
[1719617419634,20.0,139.98,139.91,16.3605]
[1719617419862,20.0,139.98,139.94,17.15]
[1719617424349,100.0,140.01,139.94,17.15]
[1719617424350,17.15,139.99,139.94,17.15]
[1719617424549,20.0,139.98,139.93,17.15]
[1719617424864,37.15,139.98,139.93,17.15]
[1719617425944,20.0,139.98,139.93,17.15]
[1719617426257,17.15,140.0,139.94,17.15]
[1719617426465,20.0,139.99,139.94,17.15]
[1719617429269,37.15,139.99,139.94,17.15]
[1719617429971,20.0,139.99,139.94,17.15]
[1719617430144,37.15,139.99,139.94,17.15]
[1719617434870,37.15,139.99,139.91,16.3605]
[1719617435173,37.15,139.99,139.94,17.15]
[1719617436645,17.15,139.98,139.93,17.15]
[1719617438655,37.15,139.99,139.94,17.15]
[1719617439579,17.15,139.98,139.93,17.15]
[1719617443782,17.15,139.98,139.91,23.5325]
[1719617443783,17.15,139.98,139.91,16.3605]
[1719617443957,17.15,139.98,139.93,17.15]
[1719617447083,20.0,139.99,139.94,17.15]
[1719617447275,17.15,139.99,139.94,17.15]
[1719617447474,20.0,139.98,139.94,17.15]
[1719617448356,17.15,139.99,139.94,17.15]
[1719617448689,20.0,139.98,139.94,17.15]
[1719617449680,22.2092,140.02,139.97,17.15]
[1719617449858,20.0,140.01,139.98,17.15]
[1719617450277,20.0,140.01,139.99,17.15]
[1719617450560,22.0295,140.06,140.0,17.15]
[1719617450762,17.15,140.05,140.0,17.15]
[1719617452598,20.0,140.04,140.0,17.15]
[1719617455085,20.0,140.04,139.99,17.15]
[1719617455262,20.0,140.04,140.0,17.15]
[1719617457666,17.15,140.05,140.0,17.15]
[1719617458385,20.0,140.04,140.0,17.15]
[1719617459476,37.15,140.05,140.0,17.15]
[1719617460389,20.0,140.05,140.0,17.15]
[1719617461487,20.0,140.05,140.02,17.15]
[1719617461660,22.7624,140.1,140.04,17.15]
[1719617461864,22.7624,140.1,140.06,17.15]
[1719617462065,116.4026,140.13,140.06,17.15]
[1719617462265,17.15,140.11,140.06,17.15]
[1719617462867,17.15,140.12,140.06,17.15]
[1719617463791,17.15,140.12,140.06,24.322]
[1719617464311,17.15,140.12,140.07,17.15]
[1719617464989,20.0,140.11,140.07,17.15]
[1719617465906,37.15,140.12,140.07,17.15]
[1719617467893,17.15,140.11,140.06,24.322]
[1719617468202,20.0,140.1,140.06,24.322]
[1719617468705,20.0,140.1,140.04,17.15]
[1719617468885,17.15,140.09,140.04,17.15]
[1719617470503,17.15,140.09,140.01,15.2034]
[1719617470810,17.15,140.07,140.01,32.3534]
[1719617470978,20.0,140.06,140.01,32.3534]
[1719617472377,20.0,140.06,140.02,17.15]
[1719617474710,20.0,140.06,140.04,17.15]
[1719617474914,17.15,140.1,140.04,17.15]
[1719617475089,20.0,140.09,140.04,17.15]
[1719617475694,20.0,140.09,140.05,17.15]
[1719617479093,20.0,140.09,140.04,17.15]
[1719617484703,37.15,140.09,140.04,17.15]
[1719617486600,37.15,140.09,140.03,17.15]
[1719617490899,17.15,140.06,139.98,15.3267]
[1719617491118,17.15,140.06,140.0,17.15]
[1719617491119,20.0,140.05,140.0,17.15]
[1719617491824,37.15,140.05,139.99,17.15]
[1719617492900,37.15,140.05,140.0,17.15]
[1719617493722,20.0,140.05,140.0,17.15]
[1719617496435,20.0,140.05,140.01,17.15]
[1719617496735,37.15,140.07,140.01,17.15]
[1719617498534,20.0,140.07,140.02,17.15]
[1719617500232,37.15,140.08,140.02,17.15]
[1719617500441,37.15,140.08,140.03,17.15]
[1719617500937,20.0,140.08,140.03,17.15]
[1719617501437,37.15,140.08,140.03,17.15]
[1719617505932,20.0,140.08,140.03,17.15]
[1719617506238,20.0,140.08,140.04,17.15]
[1719617506414,20.0,140.08,140.04,24.322]
[1719617507530,20.0,140.09,140.05,24.322]
[1719617509342,20.0,140.1,140.05,24.322]
[1719617509545,20.0,140.1,140.05,17.15]
[1719617510838,20.0,140.1,140.03,15.6081]
[1719617511341,20.0,140.1,140.05,17.15]
[1719617511538,17.15,140.09,140.04,17.15]
[1719617511736,20.0,140.08,140.05,7.172]
[1719617517251,20.0,140.08,140.04,7.172]
[1719617519457,20.0,140.08,140.04,24.322]
[1719617520176,20.0,140.08,140.03,15.6081]
[1719617520348,20.0,140.08,140.04,17.15]
[1719617520526,20.0,140.08,140.05,7.172]
[1719617521854,17.15,140.09,140.05,7.172]
[1719617522053,3.71566595,140.12,140.03,15.6081]
[1719617522262,17.15,140.1,140.04,17.15]
[1719617523059,17.15,140.09,140.05,7.172]
[1719617524847,17.15,140.09,140.04,24.322]
[1719617526545,17.15,140.07,139.99,15.4297]
[1719617526759,17.15,140.06,140.01,17.15]
[1719617527140,15.1615,140.09,140.03,17.15]
[1719617527341,17.15,140.08,140.03,17.15]
[1719617527545,20.0,140.12,140.03,7.172]
[1719617527741,25.20806595,140.13,140.06,24.322]
[1719617527942,17.15,140.11,140.06,24.322]
[1719617528160,17.15,140.11,140.06,17.15]
[1719617528545,17.15,140.11,140.07,7.172]
[1719617528852,17.15,140.12,140.07,7.172]
[1719617529163,3.71566595,140.14,140.07,17.15]
[1719617529459,17.15,140.13,140.07,17.15]
[1719617529665,17.15,140.13,140.08,17.15]
[1719617530442,20.0,140.12,140.08,17.15]
[1719617530645,17.15,140.13,140.08,24.322]
[1719617531952,15.1615,140.16,140.08,24.322]
[1719617532148,32.3115,140.16,140.1,17.15]
[1719617532442,17.15,140.16,140.11,7.172]
[1719617533462,37.15,140.15,140.11,7.172]
[1719617533676,17.15,140.14,140.1,7.172]
[1719617535370,20.0,140.15,140.08,15.4297]
[1719617535554,17.15,140.12,140.06,17.15]
[1719617536570,17.15,140.12,140.07,7.172]
[1719617540777,17.15,140.11,140.07,7.172]
[1719617541163,100.0,140.12,140.02,12.87327998]
[1719617541370,17.15,140.1,140.06,7.163]
[1719617541973,133.1434,140.14,140.06,7.163]
[1719617542273,20.0,140.13,140.07,7.163]
[1719617542466,17.15,140.12,140.07,17.15]
[1719617542695,20.0,140.11,140.07,17.15]
[1719617543376,20.0,140.11,140.08,7.163]
[1719617544647,37.15,140.11,140.07,7.163]
[1719617545059,17.15,140.1,140.05,17.15]
[1719617545679,17.15,140.1,140.06,7.163]
[1719617547969,15.9934,140.14,140.08,7.163]
[1719617548170,20.0,140.13,140.08,17.15]
[1719617549084,20.0,140.13,140.09,7.163]
[1719617553180,37.15,140.13,140.09,7.163]
[1719617554987,37.15,140.13,140.08,7.163]
[1719617555967,17.15,140.13,140.08,24.313]
[1719617556166,33.1434,140.14,140.09,7.163]
[1719617556369,17.15,140.14,140.09,7.163]
[1719617556568,17.15,140.14,140.09,24.313]
[1719617557385,20.0,140.13,140.09,24.313]
[1719617557579,20.0,140.13,140.09,7.163]
[1719617558592,37.15,140.13,140.09,7.163]
[1719617562394,37.15,140.13,140.08,7.163]
[1719617563498,22.9941548,140.17,140.09,24.313]
[1719617563695,22.9941548,140.17,140.11,17.15]
[1719617563696,20.0,140.16,140.11,17.15]
[1719617563872,22.9941548,140.17,140.12,17.15]
[1719617564676,22.9941548,140.17,140.13,7.163]
[1719617566890,0.8405548,140.17,140.13,7.163]
[1719617567469,0.8405548,140.17,140.13,24.313]
[1719617568995,0.8405548,140.17,140.13,7.163]
[1719617569300,0.8405548,140.17,140.13,24.313]
[1719617569479,20.8405548,140.17,140.13,24.313]
[1719617569686,20.8405548,140.17,140.13,7.163]
[1719617570897,37.9905548,140.17,140.13,7.163]
[1719617571294,20.8405548,140.17,140.13,7.163]
[1719617572178,20.8405548,140.17,140.14,7.163]
[1719617572378,0.8405548,140.17,140.14,7.163]
[1719617572781,0.8405548,140.17,140.14,24.313]
[1719617575300,0.8405548,140.17,140.14,7.163]
[1719617576373,0.8405548,140.17,140.14,24.313]
[1719617576906,0.8405548,140.17,140.16,17.15]
[1719617577208,0.8405548,140.17,140.16,7.163]
[1719617577403,0.8405548,140.17,140.16,24.313]
[1719617577586,0.8405548,140.17,140.16,17.15]
[1719617578004,0.8405548,140.17,140.16,24.313]
[1719617578302,0.8405548,140.17,140.16,17.15]
[1719617579091,0.8405548,140.17,140.16,24.313]
[1719617579702,0.8405548,140.17,140.15,32.2861]
[1719617580222,0.8405548,140.17,140.16,7.163]
[1719617580810,0.8405548,140.17,140.16,24.313]
[1719617586597,0.8405548,140.17,140.16,7.163]
[1719617586797,0.8405548,140.17,140.16,24.313]
[1719617588002,0.8405548,140.17,140.16,7.163]
[1719617591987,0.8405548,140.17,140.16,24.313]
[1719617592197,0.8405548,140.17,140.16,17.15]
[1719617592408,0.8405548,140.17,140.16,24.313]
[1719617592804,23.4425,140.25,140.16,24.313]
[1719617593197,23.4425,140.25,140.2,7.163]
[1719617594021,20.0,140.24,140.2,7.163]
[1719617594708,20.0,140.26,140.2,24.313]
[1719617594907,20.0,140.26,140.21,17.15]
[1719617595095,20.0,140.26,140.2,24.313]
[1719617595096,37.15,140.26,140.2,24.313]
[1719617596506,17.15,140.25,140.2,24.313]
[1719617596702,17.15,140.25,140.2,7.163]
[1719617596894,37.15,140.24,140.19,7.163]
[1719617598818,17.15,140.23,140.18,7.163]
[1719617599511,17.15,140.23,140.18,24.313]
[1719617600014,17.15,140.21,140.15,15.1361]
[1719617600218,17.15,140.21,140.16,17.15]
[1719617601112,17.15,140.21,140.17,7.163]
[1719617601428,17.15,140.18,140.12,16.625]
[1719617601601,17.15,140.17,140.12,33.775]
[1719617601801,17.15,140.18,140.13,17.15]
[1719617602001,17.15,140.18,140.13,24.313]
[1719617605632,17.15,140.18,140.14,7.163]
[1719617612235,17.15,140.15,140.09,6.4696]
[1719617612410,17.15,140.13,140.09,6.4696]
[1719617612612,17.15,140.13,140.08,33.775]
[1719617613240,17.15,140.13,140.09,7.163]
[1719617613540,17.15,140.13,140.08,16.625]
[1719617613837,17.15,140.13,140.08,33.775]
[1719617614243,17.15,140.13,140.08,16.625]
[1719617614419,17.15,140.13,140.08,33.775]
[1719617615217,17.15,140.13,140.08,40.938]
[1719617616417,17.15,140.13,140.08,33.775]
[1719617617131,17.15,140.13,140.09,7.163]
[1719617617332,17.15,140.14,140.09,7.163]
[1719617617534,17.15,140.14,140.09,24.313]
[1719617618544,17.15,140.14,140.09,17.15]
[1719617618717,17.15,140.14,140.09,24.313]
[1719617618922,17.15,140.15,140.1,17.15]
[1719617620858,16.6376,140.17,140.1,17.15]
[1719617621151,17.15,140.14,140.09,24.313]
[1719617624453,16.6376,140.17,140.1,24.313]
[1719617624657,37.15,140.16,140.11,17.15]
[1719617624833,20.0,140.16,140.12,17.15]
[1719617625033,17.15,140.17,140.12,17.15]
[1719617625558,17.15,140.17,140.12,24.313]
[1719617626029,6.2477,140.19,140.12,24.313]
[1719617626225,17.15,140.17,140.12,7.163]
[1719617628243,15.042,140.2,140.12,24.313]
[1719617628451,17.15,140.18,140.13,7.163]
[1719617630166,20.0,140.19,140.13,7.163]
[1719617630340,17.15,140.18,140.13,7.163]
[1719617630641,17.15,140.17,140.13,7.163]
[1719617636778,20.0,140.19,140.13,7.163]
[1719617636944,17.15,140.17,140.13,7.163]
[1719617637260,17.15,140.18,140.13,7.163]
[1719617642349,20.0,140.19,140.13,24.313]
[1719617642549,17.15,140.18,140.13,24.313]
[1719617642752,37.15,140.19,140.13,24.313]
[1719617644046,37.15,140.19,140.14,17.15]
[1719617644455,16.5018,140.23,140.13,7.163]
[1719617644775,17.15,140.21,140.16,24.313]
[1719617645351,17.15,140.21,140.15,17.15]
[1719617645557,17.15,140.2,140.14,17.15]
[1719617645968,17.15,140.2,140.15,24.313]
[1719617646174,17.15,140.18,140.12,15.5936]
[1719617646375,17.15,140.18,140.12,32.7436]
[1719617646878,17.15,140.16,140.12,15.5936]
[1719617647082,106.3065,140.21,140.12,15.5936]
[1719617647265,17.15,140.17,140.12,15.5936]
[1719617647658,174.9065,140.21,140.12,32.7436]
[1719617647884,17.15,140.18,140.12,39.9066]
[1719617649675,17.15,140.17,140.12,39.9066]
[1719617650180,17.15,140.17,140.12,22.7566]
[1719617652662,17.15,140.14,140.1,6.0393]
[1719617654073,17.15,140.13,140.09,15.5936]
[1719617654382,17.15,140.12,140.09,15.5936]
[1719617654558,17.15,140.13,140.09,15.5936]
[1719617655871,17.15,140.13,140.09,22.7566]
[1719617660985,17.15,140.13,140.09,15.5936]
[1719617663988,20.0,140.2,140.11,17.15]
[1719617664195,17.15,140.17,140.11,17.15]
[1719617664482,20.0,140.16,140.11,17.15]
[1719617664989,20.0,140.16,140.11,24.313]
[1719617666891,37.15,140.16,140.11,17.15]
[1719617667091,17.15,140.15,140.09,15.5936]
[1719617667270,17.15,140.14,140.09,32.7436]
[1719617667884,17.15,140.14,140.09,15.5936]
[1719617669566,17.15,140.14,140.09,32.7436]
[1719617669973,17.15,140.15,140.09,32.7436]
[1719617672893,37.15,140.16,140.1,17.15]
[1719617673688,37.15,140.16,140.11,17.15]
[1719617676491,37.15,140.16,140.11,24.313]
[1719617677891,37.15,140.16,140.1,24.313]
[1719617678100,17.15,140.15,140.1,24.313]
[1719617681094,37.15,140.16,140.1,24.313]
[1719617682594,17.15,140.15,140.1,24.313]
[1719617687904,17.15,140.15,140.1,7.163]
[1719617688800,17.15,140.15,140.09,32.7436]
[1719617689003,17.15,140.14,140.09,15.5936]
[1719617693820,17.15,140.14,140.09,32.7436]
[1719617694520,17.15,140.15,140.09,39.9066]
[1719617703523,20.0,140.16,140.1,17.15]
[1719617703827,17.15,140.15,140.1,17.15]
[1719617708635,17.15,140.15,140.09,39.9066]
[1719617709705,17.15,140.14,140.09,32.7436]
[1719617710317,17.15,140.14,140.09,15.5936]
[1719617711536,17.15,140.15,140.09,15.5936]
[1719617717147,17.15,140.15,140.09,32.7436]
[1719617718343,20.0,140.17,140.09,32.7436]
[1719617718520,17.15,140.15,140.1,17.15]
[1719617718819,17.15,140.16,140.1,17.15]
[1719617719214,20.0,140.17,140.1,17.15]
[1719617719445,17.15,140.16,140.1,17.15]
[1719617719756,17.15,140.16,140.1,24.313]
[1719617720245,17.15,140.16,140.1,30.7232]
[1719617721844,17.15,140.16,140.11,17.15]
[1719617724254,37.15,140.17,140.11,24.313]
[1719617725437,3.73454531,140.19,140.11,7.163]
[1719617725638,17.15,140.19,140.14,24.313]
[1719617728427,20.36904531,140.22,140.14,24.313]
[1719617728728,20.0,140.21,140.15,24.313]
[1719617729041,37.15,140.21,140.15,24.313]
[1719617729237,20.0,140.21,140.15,24.313]
[1719617729551,17.15,140.21,140.16,17.15]
[1719617729852,23.73454531,140.23,140.16,17.15]
[1719617730249,17.15,140.21,140.16,17.15]
[1719617730554,20.0,140.2,140.16,17.15]
[1719617732246,20.0,140.2,140.15,24.313]
[1719617732941,37.15,140.2,140.15,24.313]
[1719617734239,20.0,140.2,140.15,24.313]
[1719617734857,20.0,140.2,140.14,6.4102]
[1719617735051,17.15,140.19,140.14,6.4102]
[1719617735251,17.15,140.19,140.14,30.7232]
[1719617735639,20.0,140.2,140.14,30.7232]
[1719617735838,17.15,140.19,140.14,30.7232]
[1719617736530,17.15,140.19,140.14,6.4102]
[1719617736733,17.15,140.17,140.12,16.5037]
[1719617737037,17.15,140.16,140.12,16.5037]
[1719617738976,17.15,140.17,140.12,40.8167]
[1719617739960,17.15,140.16,140.12,23.6667]
[1719617740971,17.15,140.17,140.12,40.8167]
[1719617741464,17.15,140.14,140.12,16.5037]
[1719617742641,17.15,140.15,140.12,16.5037]
[1719617743141,37.15,140.16,140.12,16.5037]
[1719617744370,20.0,140.16,140.12,16.5037]
[1719617744591,20.0,140.2,140.12,33.6537]
[1719617744867,17.15,140.17,140.12,33.6537]
[1719617745166,20.0,140.16,140.12,34.3463691]
[1719617746353,20.0,140.16,140.12,33.6537]
[1719617748651,20.0,140.16,140.12,16.5037]
[1719617749467,37.15,140.16,140.12,16.5037]
[1719617749874,20.0,140.16,140.12,16.5037]
[1719617750058,17.15,140.16,140.12,16.5037]
[1719617750257,17.15,140.15,140.12,16.5037]
[1719617753372,100.0,140.19,140.12,16.5037]
[1719617753675,17.15,140.17,140.12,16.5037]
[1719617753874,20.0,140.16,140.12,16.5037]
[1719617754447,17.15,140.17,140.12,33.6537]
[1719617754648,20.0,140.16,140.12,16.5037]
[1719617755076,20.0,140.16,140.12,33.6537]
[1719617755960,22.2624,140.21,140.13,17.15]
[1719617756261,3.73454531,140.22,140.17,17.15]
[1719617756471,17.15,140.23,140.17,24.313]
[1719617756656,3.73454531,140.24,140.16,15.1126]
[1719617756657,103.73454531,140.24,140.16,15.1126]
[1719617756858,17.15,140.21,140.16,39.4256]
[1719617757257,17.15,140.21,140.17,30.0]
[1719617757778,17.15,140.22,140.17,30.0]
[1719617757986,17.15,140.22,140.16,15.1126]
[1719617758192,17.15,140.22,140.16,39.4256]
[1719617758478,20.0,140.21,140.16,39.4256]
[1719617759292,20.0,140.21,140.16,15.1126]
[1719617759580,37.15,140.21,140.16,32.2626]
[1719617759878,37.15,140.21,140.16,15.1126]
[1719617760252,20.0,140.21,140.16,22.2756]
[1719617760578,17.15,140.22,140.16,39.4256]
[1719617761080,20.0,140.21,140.16,39.4256]
[1719617761972,23.73227812,140.24,140.17,17.15]
[1719617762174,17.15,140.23,140.17,17.15]
[1719617762476,20.0,140.22,140.17,17.15]
[1719617762683,37.15,140.22,140.16,15.1126]
[1719617762857,17.15,140.21,140.16,32.2626]
[1719617763057,17.15,140.21,140.16,15.1126]
[1719617763256,17.15,140.21,140.16,32.2626]
[1719617764174,17.15,140.21,140.16,15.1126]
[1719617764175,17.15,140.18,140.16,15.1126]
[1719617764385,17.15,140.18,140.13,15.6961]
[1719617765156,17.15,140.18,140.13,22.8591]
[1719617765681,17.15,140.19,140.14,17.15]
[1719617765881,17.15,140.2,140.14,17.15]
[1719617766188,20.0,140.19,140.15,7.163]
[1719617766489,3.73193034,140.24,140.16,22.0307]
[1719617766657,3.73193034,140.25,140.16,22.0307]
[1719617766853,3.73193034,140.27,140.22,17.15]
[1719617767150,3.73193034,140.27,140.16,22.0307]
[1719617767151,100.0,140.27,140.19,15.6961]
[1719617768060,103.73193034,140.27,140.19,15.6961]
[1719617768257,20.0,140.26,140.19,32.8461]
[1719617768482,37.15,140.26,140.2,17.15]
[1719617769067,37.15,140.26,140.19,15.6961]
[1719617769381,17.15,140.21,140.16,6.3346]
[1719617769557,17.15,140.21,140.16,23.4846]
[1719617769879,20.0,140.26,140.16,6.3346]
[1719617770077,17.15,140.24,140.16,6.3346]
[1719617770385,37.15,140.23,140.18,17.15]
[1719617770579,37.15,140.23,140.17,17.15]
[1719617771062,37.15,140.23,140.18,17.15]
[1719617771063,20.0,140.23,140.18,17.15]
[1719617771276,20.0,140.25,140.17,7.163]
[1719617771469,17.15,140.26,140.2,17.15]
[1719617771781,20.0,140.25,140.2,17.15]
[1719617771992,20.0,140.25,140.16,6.3346]
[1719617772159,100.0,140.24,140.16,6.3346]
[1719617772355,100.0,140.24,140.16,23.4846]
[1719617772356,17.15,140.21,140.16,23.4846]
[1719617772576,37.15,140.2,140.16,6.3346]
[1719617772785,37.15,140.2,140.15,15.6961]
[1719617773666,17.15,140.19,140.15,15.6961]
[1719617775071,120.0,140.2,140.12,22.0307]
[1719617775268,17.15,140.17,140.12,22.0307]
[1719617775468,20.0,140.16,140.12,39.1807]
[1719617776781,20.0,140.16,140.13,17.15]
[1719617776980,17.15,140.19,140.13,17.15]
[1719617776981,20.0,140.18,140.13,17.15]
[1719617778294,20.0,140.18,140.12,22.0307]
[1719617778295,17.15,140.17,140.12,22.0307]
[1719617778497,20.0,140.16,140.12,15.6961]
[1719617778669,17.15,140.13,140.09,22.0307]
[1719617778872,17.15,140.14,140.09,22.0307]
[1719617779171,20.0,140.12,140.09,22.0307]
[1719617780475,20.0,140.12,140.09,39.1807]
[1719617780685,20.0,140.13,140.1,17.15]
[1719617780876,20.0,140.14,140.1,17.15]
[1719617781271,20.0,140.17,140.09,22.0307]
[1719617782077,20.0,140.21,140.09,22.0307]
[1719617783481,100.0,140.2,140.09,22.0307]
[1719617783680,20.0,140.19,140.09,22.0307]
[1719617786302,20.0,140.21,140.09,22.0307]
[1719617790186,100.0,140.2,140.09,22.0307]
[1719617790404,20.0,140.19,140.09,22.0307]
[1719617794401,20.0,140.19,140.1,16.4434]
[1719617794608,100.0,140.22,140.1,16.4434]
[1719617794609,20.0,140.21,140.1,16.4434]
[1719617797995,20.0,140.21,140.11,6.3544]
[1719617798199,20.0,140.21,140.12,16.4434]
[1719617800114,20.0,140.23,140.12,16.4434]
[1719617801191,20.0,140.23,140.13,7.163]
[1719617801412,17.16,140.21,140.16,17.16]
[1719617801604,20.0,140.2,140.16,17.16]
[1719617802594,17.16,140.21,140.16,17.16]
[1719617802798,20.0,140.2,140.16,17.16]
[1719617803689,17.16,140.21,140.16,17.16]
[1719617803889,20.0,140.2,140.16,17.16]
[1719617804192,20.0,140.2,140.17,15.2059]
[1719617804397,103.72971222,140.26,140.18,17.16]
[1719617804702,17.16,140.23,140.17,32.3659]
[1719617805697,37.16,140.22,140.17,15.2059]
[1719617805906,17.16,140.21,140.17,15.2059]
[1719617806090,20.0,140.2,140.17,15.2059]
[1719617806417,17.16,140.19,140.17,15.2059]
[1719617806603,20.0,140.18,140.17,15.2059]
[1719617821449,20.0,140.18,140.15,6.1702]
[1719617821623,20.0,140.19,140.15,6.1702]
[1719617822133,120.0,140.19,140.14,16.1109]
[1719617822336,100.0,140.17,140.1,16.1109]
[1719617822641,17.16,140.13,140.1,16.1109]
[1719617823155,20.0,140.12,140.1,16.1109]
[1719617824038,20.0,140.13,140.1,16.1109]
[1719617824630,37.16,140.13,140.08,6.3149]
[1719617826637,20.0,140.13,140.08,23.4749]
[1719617827023,20.0,140.13,140.09,17.16]
[1719617827621,17.16,140.17,140.11,17.16]
[1719617829024,20.0,140.16,140.11,17.16]
[1719617831736,37.16,140.16,140.1,17.16]
[1719617832432,17.16,140.14,140.09,17.16]
[1719617832629,17.16,140.12,140.08,6.3149]
[1719617832967,20.0,140.11,140.08,6.3149]
[1719617834049,20.0,140.12,140.08,6.3149]
[1719617835053,37.16,140.12,140.08,6.3149]
[1719617835347,20.0,140.12,140.08,6.3149]
[1719617836848,20.0,140.14,140.08,6.3149]
[1719617837441,20.0,140.16,140.08,6.3149]
[1719617839154,20.0,140.18,140.08,6.3149]
[1719617839349,100.0,140.19,140.08,6.3149]
[1719617839533,100.0,140.21,140.08,6.3149]
[1719617839735,100.0,140.19,140.08,6.3149]
[1719617840933,20.0,140.18,140.08,6.3149]